[Event "*** SCC Grand Prix: Titled Tuesday Blitz"]
[Site "Chess.com"]
[Date "2020.10.13"]
[Round "4"]
[White "EddieMarsalla"]
[Black "Loy_Konstantin"]
[Result "1-0"]
[WhiteElo "2572"]
[BlackElo "2348"]
[TimeControl "180+1"]
[EndTime "10:38:24 PDT"]
[Termination "EddieMarsalla won on time"]

1. d4 {[%clk 0:03:00.9]} 1... Nf6 {[%clk 0:02:54.1]} 2. Bg5 {[%clk 0:03:00.8]}
2... Ne4 {[%clk 0:02:53.4]} 3. Bf4 {[%clk 0:03:00]} 3... c5 {[%clk 0:02:50.3]}
4. e3 {[%clk 0:02:59.4]} 4... cxd4 {[%clk 0:02:33.4]} 5. exd4 {[%clk 0:02:58.6]}
5... d5 {[%clk 0:02:31.9]} 6. c3 {[%clk 0:02:58]} 6... Nc6 {[%clk 0:02:29.2]} 7.
Nd2 {[%clk 0:02:57.8]} 7... Nxd2 {[%clk 0:02:25.6]} 8. Qxd2 {[%clk 0:02:57.4]}
8... Bf5 {[%clk 0:02:24.9]} 9. Nf3 {[%clk 0:02:57.4]} 9... e6 {[%clk 0:02:24.8]}
10. Bd3 {[%clk 0:02:57.4]} 10... Bxd3 {[%clk 0:02:20.4]} 11. Qxd3 {[%clk
0:02:58.3]} 11... Bd6 {[%clk 0:02:17.5]} 12. Bxd6 {[%clk 0:02:58.2]} 12... Qxd6
{[%clk 0:02:17.1]} 13. O-O {[%clk 0:02:58.7]} 13... h6 {[%clk 0:02:10.6]} 14.
Rfe1 {[%clk 0:02:58.4]} 14... O-O {[%clk 0:02:08.7]} 15. Ne5 {[%clk 0:02:57.9]}
15... Nxe5 {[%clk 0:02:07.5]} 16. Rxe5 {[%clk 0:02:58.8]} 16... Rab8 {[%clk
0:01:58.3]} 17. Rae1 {[%clk 0:02:58.3]} 17... Qa6 {[%clk 0:01:48.5]} 18. Qb1
{[%clk 0:02:47.9]} 18... b5 {[%clk 0:01:47.1]} 19. a3 {[%clk 0:02:45.2]} 19...
Qc6 {[%clk 0:01:41.7]} 20. f4 {[%clk 0:02:45]} 20... a5 {[%clk 0:01:39.6]} 21.
f5 {[%clk 0:02:45.2]} 21... exf5 {[%clk 0:01:38]} 22. Qxf5 {[%clk 0:02:46.1]}
22... b4 {[%clk 0:01:27.1]} 23. axb4 {[%clk 0:02:46.3]} 23... axb4 {[%clk
0:01:28]} 24. Rxd5 {[%clk 0:02:46.8]} 24... bxc3 {[%clk 0:01:24.9]} 25. Rc5
{[%clk 0:02:47.1]} 25... Qa4 {[%clk 0:00:32.2]} 26. bxc3 {[%clk 0:02:45.7]}
26... Rb2 {[%clk 0:00:30.3]} 27. Rf1 {[%clk 0:02:45.5]} 27... Qc2 {[%clk
0:00:26]} 28. Qxc2 {[%clk 0:02:40.1]} 28... Rxc2 {[%clk 0:00:26.9]} 29. h3
{[%clk 0:02:37.3]} 29... Ra8 {[%clk 0:00:25.5]} 30. Rcf5 {[%clk 0:02:16.3]}
30... Rxc3 {[%clk 0:00:18.4]} 31. Rxf7 {[%clk 0:02:15.5]} 31... Rd3 {[%clk
0:00:15.1]} 32. Rd7 {[%clk 0:02:15.4]} 32... Rf8 {[%clk 0:00:13.7]} 33. Rxf8+
{[%clk 0:02:14.8]} 33... Kxf8 {[%clk 0:00:14.6]} 34. d5 {[%clk 0:02:15.7]} 34...
Rd2 {[%clk 0:00:13.4]} 35. Kh2 {[%clk 0:02:14.9]} 35... Kg8 {[%clk 0:00:13.2]}
36. Kg3 {[%clk 0:02:14.9]} 36... Kh7 {[%clk 0:00:13.1]} 37. Kf3 {[%clk
0:02:15.1]} 37... Kg6 {[%clk 0:00:13.5]} 38. h4 {[%clk 0:02:14.5]} 38... Kf6
{[%clk 0:00:13.5]} 39. g4 {[%clk 0:02:14.5]} 39... g5 {[%clk 0:00:13.4]} 40.
hxg5+ {[%clk 0:02:11.2]} 40... hxg5 {[%clk 0:00:14.3]} 41. Ke4 {[%clk
0:02:09.8]} 41... Rg2 {[%clk 0:00:12.7]} 42. Rd6+ {[%clk 0:02:08.6]} 42... Ke7
{[%clk 0:00:10.2]} 43. Re6+ {[%clk 0:02:08.8]} 43... Kf7 {[%clk 0:00:10.6]} 44.
Kf5 {[%clk 0:02:07.7]} 44... Rd2 {[%clk 0:00:10.8]} 45. Re5 {[%clk 0:02:04.4]}
45... Ra2 {[%clk 0:00:07.4]} 46. Kxg5 {[%clk 0:02:02.4]} 46... Rd2 {[%clk
0:00:07.9]} 47. Kf5 {[%clk 0:02:00.3]} 47... Rd1 {[%clk 0:00:07.5]} 48. Ke4
{[%clk 0:01:58]} 48... Rg1 {[%clk 0:00:06.5]} 49. g5 {[%clk 0:01:57.8]} 49...
Kg6 {[%clk 0:00:05.3]} 50. d6 {[%clk 0:01:57.4]} 50... Re1+ {[%clk 0:00:03.9]}
51. Kd5 {[%clk 0:01:56.7]} 51... Rd1+ {[%clk 0:00:02.1]} 52. Ke6 {[%clk
0:01:56.8]} 1-0

[Event "*** SCC Grand Prix: Titled Tuesday Blitz"]
[Site "Chess.com"]
[Date "2020.10.13"]
[Round "4"]
[White "AIROPITO7"]
[Black "baki83"]
[Result "1/2-1/2"]
[WhiteElo "2551"]
[BlackElo "2749"]
[TimeControl "180+1"]
[EndTime "10:38:29 PDT"]
[Termination "Game drawn by repetition"]

1. e4 {[%clk 0:03:00.9]} 1... e5 {[%clk 0:02:57.5]} 2. Nf3 {[%clk 0:03:00.5]}
2... Nc6 {[%clk 0:02:58.1]} 3. Bb5 {[%clk 0:03:00.6]} 3... a6 {[%clk 0:02:58.6]}
4. Bxc6 {[%clk 0:03:00.9]} 4... dxc6 {[%clk 0:02:58.2]} 5. Nc3 {[%clk
0:03:01.5]} 5... Bd6 {[%clk 0:02:56.4]} 6. O-O {[%clk 0:02:59.9]} 6... c5 {[%clk
0:02:55]} 7. h3 {[%clk 0:02:53.6]} 7... Ne7 {[%clk 0:02:54.9]} 8. Ne2 {[%clk
0:02:51.6]} 8... Nc6 {[%clk 0:02:44.5]} 9. c3 {[%clk 0:02:51]} 9... c4 {[%clk
0:02:27.6]} 10. d3 {[%clk 0:02:48.3]} 10... cxd3 {[%clk 0:02:26.4]} 11. Qxd3
{[%clk 0:02:49.2]} 11... O-O {[%clk 0:02:21]} 12. Ng3 {[%clk 0:02:47]} 12... Qe7
{[%clk 0:02:11.5]} 13. Bg5 {[%clk 0:02:31.2]} 13... f6 {[%clk 0:02:11]} 14. Be3
{[%clk 0:02:29.1]} 14... g6 {[%clk 0:02:07.3]} 15. Nd2 {[%clk 0:02:21.9]} 15...
Be6 {[%clk 0:02:05.2]} 16. Nc4 {[%clk 0:02:18.7]} 16... Bc5 {[%clk 0:01:55.4]}
17. Bxc5 {[%clk 0:02:13.4]} 17... Qxc5 {[%clk 0:01:56.3]} 18. Ne3 {[%clk
0:02:13.6]} 18... Rad8 {[%clk 0:01:50.5]} 19. Qc2 {[%clk 0:02:11.9]} 19... Rd7
{[%clk 0:01:30.6]} 20. Rad1 {[%clk 0:02:06.6]} 20... Rfd8 {[%clk 0:01:30.6]} 21.
Rxd7 {[%clk 0:01:55.8]} 21... Rxd7 {[%clk 0:01:31.5]} 22. Rd1 {[%clk 0:01:56.2]}
22... Rxd1+ {[%clk 0:01:31.2]} 23. Qxd1 {[%clk 0:01:57.1]} 23... Bxa2 {[%clk
0:01:19.7]} 24. Qd7 {[%clk 0:01:54.6]} 24... Qd6 {[%clk 0:01:06.1]} 25. Qc8+
{[%clk 0:01:51.1]} 25... Nd8 {[%clk 0:01:04.7]} 26. Nd5 {[%clk 0:01:28.1]} 26...
Bxd5 {[%clk 0:01:02.6]} 27. exd5 {[%clk 0:01:29]} 27... Qxd5 {[%clk 0:00:49.9]}
28. Qxc7 {[%clk 0:01:25.7]} 28... Ne6 {[%clk 0:00:39.1]} 29. Qe7 {[%clk
0:01:22]} 29... Nf4 {[%clk 0:00:29.6]} 30. f3 {[%clk 0:01:06.7]} 30... Qf7
{[%clk 0:00:29.3]} 31. Qd8+ {[%clk 0:01:01.7]} 31... Kg7 {[%clk 0:00:29.3]} 32.
Ne4 {[%clk 0:01:02.3]} 32... h5 {[%clk 0:00:22.8]} 33. Nd6 {[%clk 0:00:59]}
33... Qe6 {[%clk 0:00:22.2]} 34. Ne8+ {[%clk 0:00:57.6]} 34... Kf7 {[%clk
0:00:19.2]} 35. Nd6+ {[%clk 0:00:57.4]} 35... Kg7 {[%clk 0:00:19.4]} 36. Ne8+
{[%clk 0:00:57.8]} 36... Kf7 {[%clk 0:00:19]} 37. Nd6+ {[%clk 0:00:58.1]} 37...
Kg7 {[%clk 0:00:19.2]} 1/2-1/2

[Event "*** SCC Grand Prix: Titled Tuesday Blitz"]
[Site "Chess.com"]
[Date "2020.10.13"]
[Round "4"]
[White "mjray79"]
[Black "Larina_Marija"]
[Result "1-0"]
[WhiteElo "2425"]
[BlackElo "2255"]
[TimeControl "180+1"]
[EndTime "10:38:30 PDT"]
[Termination "mjray79 won on time"]

1. d4 {[%clk 0:03:00.9]} 1... f5 {[%clk 0:02:59.3]} 2. Nc3 {[%clk 0:03:00.1]}
2... Nf6 {[%clk 0:02:59.3]} 3. Bg5 {[%clk 0:02:59.7]} 3... Nc6 {[%clk
0:02:56.8]} 4. Bxf6 {[%clk 0:02:57.3]} 4... exf6 {[%clk 0:02:57.7]} 5. e3 {[%clk
0:02:52.7]} 5... d5 {[%clk 0:02:55.8]} 6. a3 {[%clk 0:02:51.5]} 6... Be6 {[%clk
0:02:53.3]} 7. Bd3 {[%clk 0:02:50.9]} 7... Qd7 {[%clk 0:02:51.4]} 8. Nge2 {[%clk
0:02:50.6]} 8... g6 {[%clk 0:02:48.9]} 9. Nf4 {[%clk 0:02:49.8]} 9... Bf7 {[%clk
0:02:48.6]} 10. Qf3 {[%clk 0:02:49]} 10... O-O-O {[%clk 0:02:40.1]} 11. h3
{[%clk 0:02:48.6]} 11... h5 {[%clk 0:02:13.7]} 12. O-O-O {[%clk 0:02:46.6]}
12... Na5 {[%clk 0:02:05.6]} 13. Rhg1 {[%clk 0:02:33.5]} 13... Kb8 {[%clk
0:02:04]} 14. g4 {[%clk 0:02:32.1]} 14... hxg4 {[%clk 0:02:00.4]} 15. hxg4
{[%clk 0:02:33]} 15... fxg4 {[%clk 0:02:00.6]} 16. Rxg4 {[%clk 0:02:20.2]} 16...
f5 {[%clk 0:02:00.1]} 17. Rgg1 {[%clk 0:02:17.2]} 17... Qc6 {[%clk 0:01:40.4]}
18. Rg2 {[%clk 0:01:46]} 18... Nc4 {[%clk 0:01:12]} 19. Rdg1 {[%clk 0:01:36]}
19... Nxa3 {[%clk 0:00:45.1]} 20. Nxg6 {[%clk 0:01:31.6]} 20... Bxg6 {[%clk
0:00:26.4]} 21. Rxg6 {[%clk 0:01:32.5]} 21... Bd6 {[%clk 0:00:18.2]} 22. Qxd5
{[%clk 0:01:21]} 22... Qe8 {[%clk 0:00:10.4]} 23. Qb3 {[%clk 0:01:14.6]} 23...
Rh2 {[%clk 0:00:02.1]} 24. Rg8 {[%clk 0:01:09.6]} 24... Qe7 {[%clk 0:00:01.9]}
25. Rxd8+ {[%clk 0:01:08.8]} 25... Qxd8 {[%clk 0:00:02.8]} 26. bxa3 {[%clk
0:01:06]} 26... Rxf2 {[%clk 0:00:02.8]} 27. Rg8 {[%clk 0:01:02.4]} 27... Bf8
{[%clk 0:00:03.2]} 28. Qf7 {[%clk 0:01:01.2]} 28... Rf1+ {[%clk 0:00:02.2]} 29.
Bxf1 {[%clk 0:00:59.9]} 1-0

[Event "*** SCC Grand Prix: Titled Tuesday Blitz"]
[Site "Chess.com"]
[Date "2020.10.13"]
[Round "4"]
[White "wannabe2700"]
[Black "jacky72"]
[Result "0-1"]
[WhiteElo "2711"]
[BlackElo "2567"]
[TimeControl "180+1"]
[EndTime "10:38:32 PDT"]
[Termination "jacky72 won on time"]

1. e4 {[%clk 0:03:00.9]} 1... e5 {[%clk 0:02:59.9]} 2. Nf3 {[%clk 0:03:01]} 2...
Nc6 {[%clk 0:03:00.8]} 3. Bb5 {[%clk 0:03:01.6]} 3... a6 {[%clk 0:03:00.8]} 4.
Ba4 {[%clk 0:03:02.1]} 4... d6 {[%clk 0:03:01.7]} 5. O-O {[%clk 0:03:00.2]} 5...
Bd7 {[%clk 0:03:02.1]} 6. c3 {[%clk 0:02:58.9]} 6... g6 {[%clk 0:03:02.2]} 7. d4
{[%clk 0:02:58.5]} 7... Bg7 {[%clk 0:03:00.8]} 8. Re1 {[%clk 0:02:54.3]} 8...
Nf6 {[%clk 0:02:57.6]} 9. Nbd2 {[%clk 0:02:53]} 9... O-O {[%clk 0:02:57.6]} 10.
Nf1 {[%clk 0:02:45.9]} 10... Re8 {[%clk 0:02:54.6]} 11. Ng3 {[%clk 0:02:42.5]}
11... b5 {[%clk 0:02:51.5]} 12. Bb3 {[%clk 0:02:31.7]} 12... Na5 {[%clk
0:02:50.8]} 13. Bc2 {[%clk 0:02:30.5]} 13... c5 {[%clk 0:02:50.2]} 14. d5 {[%clk
0:02:20.1]} 14... Rf8 {[%clk 0:02:47.4]} 15. b3 {[%clk 0:02:12.6]} 15... Ne8
{[%clk 0:02:44.1]} 16. Bd2 {[%clk 0:01:32.6]} 16... h6 {[%clk 0:02:42.6]} 17.
Qb1 {[%clk 0:00:47.2]} 17... Nb7 {[%clk 0:02:38.5]} 18. a4 {[%clk 0:00:43.4]}
18... Nc7 {[%clk 0:02:36.4]} 19. Bd3 {[%clk 0:00:41.5]} 19... Qe7 {[%clk
0:02:34.8]} 20. Qc2 {[%clk 0:00:39.2]} 20... Rfb8 {[%clk 0:02:34.8]} 21. a5
{[%clk 0:00:33.3]} 21... Rf8 {[%clk 0:02:28]} 22. b4 {[%clk 0:00:30.4]} 22... c4
{[%clk 0:02:27.7]} 23. Bf1 {[%clk 0:00:29.6]} 23... f6 {[%clk 0:02:26.5]} 24.
Nh4 {[%clk 0:00:28.5]} 24... Kh7 {[%clk 0:02:22.6]} 25. Nf3 {[%clk 0:00:18.9]}
25... Rf7 {[%clk 0:02:22.5]} 26. Be3 {[%clk 0:00:13.6]} 26... Raf8 {[%clk
0:02:19.7]} 27. Nd2 {[%clk 0:00:09.4]} 27... Kh8 {[%clk 0:02:13.4]} 28. f3
{[%clk 0:00:09.2]} 28... f5 {[%clk 0:02:13.7]} 29. f4 {[%clk 0:00:08.5]} 29...
fxe4 {[%clk 0:02:08.7]} 30. fxe5 {[%clk 0:00:08.2]} 30... Nxd5 {[%clk
0:02:02.1]} 31. exd6 {[%clk 0:00:06.8]} 31... Nxd6 {[%clk 0:02:01.1]} 32. Ndxe4
{[%clk 0:00:06.7]} 32... Nxe4 {[%clk 0:01:58.9]} 33. Nxe4 {[%clk 0:00:05.6]}
33... Bf5 {[%clk 0:01:58.9]} 34. Bc5 {[%clk 0:00:03.5]} 34... Qe5 {[%clk
0:01:43.3]} 35. Bxf8 {[%clk 0:00:03.5]} 35... Rxf8 {[%clk 0:01:44]} 36. g3
{[%clk 0:00:03.9]} 36... Nxc3 {[%clk 0:01:42.6]} 37. Qxc3 {[%clk 0:00:03.2]}
37... Qxc3 {[%clk 0:01:43]} 38. Nxc3 {[%clk 0:00:04.1]} 38... Bxc3 {[%clk
0:01:43.6]} 39. Bg2 {[%clk 0:00:04.7]} 39... Rd8 {[%clk 0:01:37.2]} 40. Bb7
{[%clk 0:00:04.7]} 40... Bxa1 {[%clk 0:01:37.2]} 41. Rxa1 {[%clk 0:00:05]} 41...
Rd6 {[%clk 0:01:37.5]} 42. Re1 {[%clk 0:00:05.1]} 42... c3 {[%clk 0:01:37.8]}
43. Rc1 {[%clk 0:00:04.7]} 43... c2 {[%clk 0:01:37.6]} 44. Bf3 {[%clk 0:00:05]}
44... Rd3 {[%clk 0:01:36.2]} 45. Be2 {[%clk 0:00:01.9]} 45... Rb3 {[%clk
0:01:36.2]} 0-1

[Event "*** SCC Grand Prix: Titled Tuesday Blitz"]
[Site "Chess.com"]
[Date "2020.10.13"]
[Round "4"]
[White "SHIVACalypso"]
[Black "Sn00pPawn"]
[Result "1-0"]
[WhiteElo "2368"]
[BlackElo "1982"]
[TimeControl "180+1"]
[EndTime "10:38:33 PDT"]
[Termination "SHIVACalypso won by resignation"]

1. Nf3 {[%clk 0:03:00.9]} 1... Nf6 {[%clk 0:02:59.3]} 2. c4 {[%clk 0:03:01.4]}
2... g6 {[%clk 0:02:57.6]} 3. g3 {[%clk 0:03:02.3]} 3... Bg7 {[%clk 0:02:58.3]}
4. Bg2 {[%clk 0:03:02.4]} 4... O-O {[%clk 0:02:59.2]} 5. O-O {[%clk 0:03:02]}
5... d6 {[%clk 0:03:00.1]} 6. Nc3 {[%clk 0:02:58.1]} 6... Nc6 {[%clk 0:03:00.4]}
7. d3 {[%clk 0:02:57.4]} 7... e5 {[%clk 0:03:00.1]} 8. Rb1 {[%clk 0:02:57.6]}
8... a5 {[%clk 0:03:00.7]} 9. a3 {[%clk 0:02:57.1]} 9... Re8 {[%clk 0:02:59.9]}
10. b4 {[%clk 0:02:55.9]} 10... axb4 {[%clk 0:03:00.8]} 11. axb4 {[%clk
0:02:56.8]} 11... e4 {[%clk 0:03:01.5]} 12. dxe4 {[%clk 0:02:57.5]} 12... Nxe4
{[%clk 0:03:02.4]} 13. Nxe4 {[%clk 0:02:58.3]} 13... Rxe4 {[%clk 0:03:02.4]} 14.
Nd2 {[%clk 0:02:59.2]} 14... Re8 {[%clk 0:02:51]} 15. Bb2 {[%clk 0:02:58.1]}
15... Ra2 {[%clk 0:02:26.8]} 16. Qb3 {[%clk 0:02:45.9]} 16... Rxb2 {[%clk
0:02:20.7]} 17. Rxb2 {[%clk 0:02:45.4]} 17... Bxb2 {[%clk 0:02:21.6]} 18. Qxb2
{[%clk 0:02:45.4]} 18... Rxe2 {[%clk 0:02:21.7]} 19. Bf3 {[%clk 0:02:41.3]}
19... Re8 {[%clk 0:02:19.4]} 20. b5 {[%clk 0:02:39.1]} 20... Ne5 {[%clk
0:02:18.2]} 21. Be2 {[%clk 0:02:32.1]} 21... Bf5 {[%clk 0:01:57.2]} 22. Qd4
{[%clk 0:02:23.3]} 22... Qe7 {[%clk 0:01:45.5]} 23. Ra1 {[%clk 0:01:49.4]} 23...
Nd7 {[%clk 0:01:30.1]} 24. Bf3 {[%clk 0:01:44.8]} 24... Nc5 {[%clk 0:01:29.4]}
25. Kg2 {[%clk 0:01:29.4]} 25... Qe6 {[%clk 0:01:25.3]} 26. Bd5 {[%clk
0:01:25.3]} 26... Bh3+ {[%clk 0:01:22]} 27. Kg1 {[%clk 0:01:20.4]} 27... Qe1+
{[%clk 0:01:04.6]} 28. Nf1 {[%clk 0:01:18.6]} 28... Bxf1 {[%clk 0:01:02.4]} 29.
Rxe1 {[%clk 0:01:17.6]} 29... Rxe1 {[%clk 0:01:03.3]} 30. f4 {[%clk 0:01:11.8]}
30... Nd3 {[%clk 0:00:59.7]} 31. h4 {[%clk 0:01:01.6]} 31... h5 {[%clk
0:00:42.1]} 32. Qf6 {[%clk 0:00:57.5]} 32... Bh3+ {[%clk 0:00:18.4]} 33. Kh2
{[%clk 0:00:57.2]} 33... Re3 {[%clk 0:00:17.3]} 34. Qxf7+ {[%clk 0:00:54.9]} 1-0

[Event "*** SCC Grand Prix: Titled Tuesday Blitz"]
[Site "Chess.com"]
[Date "2020.10.13"]
[Round "4"]
[White "romulocardoso"]
[Black "Gulkov_Igor"]
[Result "0-1"]
[WhiteElo "2085"]
[BlackElo "2461"]
[TimeControl "180+1"]
[EndTime "10:38:37 PDT"]
[Termination "Gulkov_Igor won by resignation"]

1. e4 {[%clk 0:03:00.9]} 1... c5 {[%clk 0:02:59.3]} 2. Nf3 {[%clk 0:02:57.1]}
2... d6 {[%clk 0:02:58.4]} 3. d4 {[%clk 0:02:57.5]} 3... cxd4 {[%clk 0:02:57.5]}
4. Nxd4 {[%clk 0:02:58.4]} 4... Nf6 {[%clk 0:02:57.1]} 5. Nc3 {[%clk 0:02:58.5]}
5... a6 {[%clk 0:02:57.4]} 6. Be2 {[%clk 0:02:58.5]} 6... e6 {[%clk 0:02:57]} 7.
O-O {[%clk 0:02:58.4]} 7... Qc7 {[%clk 0:02:57.1]} 8. Kh1 {[%clk 0:02:57.6]}
8... b5 {[%clk 0:02:56.8]} 9. Bf3 {[%clk 0:02:41.3]} 9... Bb7 {[%clk 0:02:56]}
10. Re1 {[%clk 0:02:32.8]} 10... Nbd7 {[%clk 0:02:55]} 11. Be3 {[%clk
0:02:10.7]} 11... Be7 {[%clk 0:02:51.8]} 12. Qd3 {[%clk 0:02:07.2]} 12... Nc5
{[%clk 0:02:50.2]} 13. Ndxb5 {[%clk 0:01:58.1]} 13... axb5 {[%clk 0:02:49]} 14.
Nxb5 {[%clk 0:01:47.6]} 14... Qb8 {[%clk 0:02:22]} 15. Bxc5 {[%clk 0:01:43.6]}
15... dxc5 {[%clk 0:02:21.4]} 16. e5 {[%clk 0:01:37.3]} 16... Nd5 {[%clk
0:02:15.5]} 17. c4 {[%clk 0:01:34.9]} 17... Nb4 {[%clk 0:02:13]} 18. Qe3 {[%clk
0:01:27.3]} 18... Nc2 {[%clk 0:02:03.9]} 19. Qb3 {[%clk 0:01:16.7]} 19... Nxa1
{[%clk 0:01:57.4]} 20. Nd6+ {[%clk 0:00:53.8]} 20... Bxd6 {[%clk 0:01:55.8]} 21.
Qb5+ {[%clk 0:00:49.3]} 21... Kf8 {[%clk 0:01:50.8]} 22. Bxb7 {[%clk 0:00:38.2]}
22... Ra7 {[%clk 0:01:41.8]} 23. exd6 {[%clk 0:00:37.6]} 23... Rxb7 {[%clk
0:01:32.6]} 24. Qxc5 {[%clk 0:00:35.5]} 24... Rd7 {[%clk 0:01:18.2]} 25. Rxa1
{[%clk 0:00:31.7]} 25... Qxd6 {[%clk 0:01:17]} 26. Qh5 {[%clk 0:00:16.4]} 26...
g6 {[%clk 0:01:10.4]} 27. Qf3 {[%clk 0:00:14.2]} 27... Kg7 {[%clk 0:01:07]} 28.
a4 {[%clk 0:00:14]} 28... Rb8 {[%clk 0:01:03.5]} 29. b3 {[%clk 0:00:13.2]} 29...
Qd3 {[%clk 0:00:53.5]} 30. Qxd3 {[%clk 0:00:12]} 30... Rxd3 {[%clk 0:00:52.8]}
31. a5 {[%clk 0:00:12.4]} 31... Rdxb3 {[%clk 0:00:52.3]} 32. h3 {[%clk 0:00:12]}
32... Rb1+ {[%clk 0:00:51.2]} 33. Rxb1 {[%clk 0:00:12.9]} 33... Rxb1+ {[%clk
0:00:51.1]} 34. Kh2 {[%clk 0:00:13.8]} 34... Ra1 {[%clk 0:00:51.3]} 35. c5
{[%clk 0:00:14.7]} 0-1

[Event "*** SCC Grand Prix: Titled Tuesday Blitz"]
[Site "Chess.com"]
[Date "2020.10.13"]
[Round "4"]
[White "Nikolakis2014"]
[Black "pedromartinez91"]
[Result "1-0"]
[WhiteElo "2741"]
[BlackElo "2520"]
[TimeControl "180+1"]
[EndTime "10:38:40 PDT"]
[Termination "Nikolakis2014 won by resignation"]

1. Nf3 {[%clk 0:03:00.9]} 1... e6 {[%clk 0:02:58.6]} 2. c4 {[%clk 0:03:00.2]}
2... d5 {[%clk 0:02:58.9]} 3. d4 {[%clk 0:02:59.8]} 3... Nf6 {[%clk 0:02:59.2]}
4. g3 {[%clk 0:02:59.6]} 4... Be7 {[%clk 0:02:59.7]} 5. Bg2 {[%clk 0:02:58.9]}
5... O-O {[%clk 0:03:00.2]} 6. O-O {[%clk 0:02:57.3]} 6... dxc4 {[%clk
0:03:00.4]} 7. Qc2 {[%clk 0:02:57.5]} 7... a6 {[%clk 0:02:34.2]} 8. a4 {[%clk
0:02:55.1]} 8... b6 {[%clk 0:02:34]} 9. Ne5 {[%clk 0:02:27.7]} 9... Ra7 {[%clk
0:02:33.5]} 10. Rd1 {[%clk 0:02:22.6]} 10... Bb7 {[%clk 0:02:30.7]} 11. Bxb7
{[%clk 0:02:20.8]} 11... Rxb7 {[%clk 0:02:31.6]} 12. Nxc4 {[%clk 0:02:05.9]}
12... Qd5 {[%clk 0:02:19.5]} 13. b3 {[%clk 0:01:57.8]} 13... Qh5 {[%clk
0:02:07.8]} 14. f3 {[%clk 0:01:46]} 14... c5 {[%clk 0:02:07.3]} 15. Be3 {[%clk
0:01:43.7]} 15... cxd4 {[%clk 0:02:04.5]} 16. Bxd4 {[%clk 0:01:37.4]} 16... Nc6
{[%clk 0:02:03.3]} 17. Bf2 {[%clk 0:01:31.7]} 17... Nb4 {[%clk 0:01:52.1]} 18.
Qc1 {[%clk 0:01:14.2]} 18... Rc8 {[%clk 0:01:40.7]} 19. Nc3 {[%clk 0:01:04.1]}
19... b5 {[%clk 0:01:34.9]} 20. axb5 {[%clk 0:01:03.6]} 20... axb5 {[%clk
0:01:35.8]} 21. Nb6 {[%clk 0:01:03.7]} 21... Bc5 {[%clk 0:00:36.9]} 22. Nxc8
{[%clk 0:00:53.9]} 22... Bxf2+ {[%clk 0:00:36.5]} 23. Kxf2 {[%clk 0:00:40.6]}
23... Qxh2+ {[%clk 0:00:36.1]} 24. Ke3 {[%clk 0:00:40.7]} 24... Nfd5+ {[%clk
0:00:18.7]} 25. Nxd5 {[%clk 0:00:37.1]} 25... Nxd5+ {[%clk 0:00:19.6]} 26. Rxd5
{[%clk 0:00:35.7]} 26... exd5 {[%clk 0:00:18.2]} 27. Qc6 {[%clk 0:00:35.4]}
27... Qh6+ {[%clk 0:00:13.2]} 28. Qxh6 {[%clk 0:00:34.1]} 28... gxh6 {[%clk
0:00:12.6]} 29. Nd6 {[%clk 0:00:33.8]} 1-0

[Event "*** SCC Grand Prix: Titled Tuesday Blitz"]
[Site "Chess.com"]
[Date "2020.10.13"]
[Round "4"]
[White "canary2016"]
[Black "fabianvivasz"]
[Result "1-0"]
[WhiteElo "1965"]
[BlackElo "2350"]
[TimeControl "180+1"]
[EndTime "10:38:40 PDT"]
[Termination "canary2016 won on time"]

1. d4 {[%clk 0:03:00.9]} 1... Nf6 {[%clk 0:02:59.2]} 2. c4 {[%clk 0:03:00.4]}
2... c5 {[%clk 0:02:58.5]} 3. d5 {[%clk 0:03:00]} 3... b5 {[%clk 0:02:58.3]} 4.
cxb5 {[%clk 0:02:59.7]} 4... a6 {[%clk 0:02:57.8]} 5. e3 {[%clk 0:03:00.1]} 5...
axb5 {[%clk 0:02:52.9]} 6. Bxb5 {[%clk 0:02:58.9]} 6... Qa5+ {[%clk 0:02:35.4]}
7. Nc3 {[%clk 0:02:56.1]} 7... Ne4 {[%clk 0:01:52]} 8. Qd3 {[%clk 0:02:47.3]}
8... Nxc3 {[%clk 0:01:48]} 9. bxc3 {[%clk 0:02:45.1]} 9... g6 {[%clk 0:01:47.4]}
10. Bb2 {[%clk 0:02:38.9]} 10... Bg7 {[%clk 0:01:46.2]} 11. Nf3 {[%clk
0:02:33.6]} 11... O-O {[%clk 0:01:45.1]} 12. O-O {[%clk 0:02:33]} 12... d6
{[%clk 0:01:38.3]} 13. a4 {[%clk 0:02:29.1]} 13... Nd7 {[%clk 0:01:10]} 14. Qc2
{[%clk 0:02:19.8]} 14... Nb6 {[%clk 0:00:44.4]} 15. c4 {[%clk 0:02:14.7]} 15...
Bf5 {[%clk 0:00:44.2]} 16. Qe2 {[%clk 0:02:02.1]} 16... Bxb2 {[%clk 0:00:37.7]}
17. Qxb2 {[%clk 0:02:00.9]} 17... Rfb8 {[%clk 0:00:37.5]} 18. Qc1 {[%clk
0:01:36.6]} 18... Qb4 {[%clk 0:00:33.7]} 19. Qa3 {[%clk 0:01:16.2]} 19... Bc2
{[%clk 0:00:12.6]} 20. a5 {[%clk 0:00:26.3]} 1-0

[Event "*** SCC Grand Prix: Titled Tuesday Blitz"]
[Site "Chess.com"]
[Date "2020.10.13"]
[Round "4"]
[White "lider34"]
[Black "PawnEatingZombie"]
[Result "1-0"]
[WhiteElo "2373"]
[BlackElo "2178"]
[TimeControl "180+1"]
[EndTime "10:38:40 PDT"]
[Termination "lider34 won by checkmate"]

1. e4 {[%clk 0:03:00.9]} 1... c6 {[%clk 0:02:58.6]} 2. d4 {[%clk 0:02:59.7]}
2... d5 {[%clk 0:02:57.8]} 3. exd5 {[%clk 0:02:59.5]} 3... cxd5 {[%clk
0:02:58.7]} 4. Bd3 {[%clk 0:02:59.5]} 4... Nc6 {[%clk 0:02:57.9]} 5. c3 {[%clk
0:02:59.5]} 5... Qc7 {[%clk 0:02:58.5]} 6. h3 {[%clk 0:02:58.1]} 6... Nf6 {[%clk
0:02:56.2]} 7. Nf3 {[%clk 0:02:56.4]} 7... g6 {[%clk 0:02:56.6]} 8. O-O {[%clk
0:02:55.8]} 8... Bf5 {[%clk 0:02:56.4]} 9. Re1 {[%clk 0:02:54.9]} 9... e6 {[%clk
0:02:48]} 10. Bg5 {[%clk 0:02:41.1]} 10... Be7 {[%clk 0:02:47.3]} 11. Ne5 {[%clk
0:02:36.1]} 11... Nxe5 {[%clk 0:02:19.5]} 12. dxe5 {[%clk 0:02:35]} 12... Nd7
{[%clk 0:02:17.9]} 13. Bxe7 {[%clk 0:02:32.9]} 13... Kxe7 {[%clk 0:02:18.8]} 14.
Bxf5 {[%clk 0:02:15.5]} 14... gxf5 {[%clk 0:02:18.1]} 15. Qd4 {[%clk 0:02:08.1]}
15... Qc5 {[%clk 0:02:12.3]} 16. Qh4+ {[%clk 0:02:06.2]} 16... Ke8 {[%clk
0:02:00.6]} 17. Nd2 {[%clk 0:02:05.6]} 17... Rc8 {[%clk 0:01:49.4]} 18. Rac1
{[%clk 0:02:02.5]} 18... Qe7 {[%clk 0:01:45.6]} 19. Qh5 {[%clk 0:01:57.7]} 19...
Kd8 {[%clk 0:01:35.4]} 20. c4 {[%clk 0:01:46]} 20... d4 {[%clk 0:01:33.7]} 21.
Nf3 {[%clk 0:01:44.9]} 21... d3 {[%clk 0:01:25]} 22. Red1 {[%clk 0:01:43.5]}
22... Nc5 {[%clk 0:01:24]} 23. b4 {[%clk 0:01:36.8]} 23... Ne4 {[%clk
0:01:23.6]} 24. Rxd3+ {[%clk 0:01:36.4]} 24... Kc7 {[%clk 0:01:21.8]} 25. c5
{[%clk 0:01:35.1]} 25... Rcd8 {[%clk 0:01:17.2]} 26. Rcd1 {[%clk 0:01:33.5]}
26... Rxd3 {[%clk 0:01:12.7]} 27. Rxd3 {[%clk 0:01:33.2]} 27... f6 {[%clk
0:01:09.1]} 28. Qh4 {[%clk 0:01:18.4]} 28... Rg8 {[%clk 0:01:05]} 29. exf6
{[%clk 0:01:04.8]} 29... Nxf6 {[%clk 0:01:04.2]} 30. Qf4+ {[%clk 0:01:01.4]}
30... Kc8 {[%clk 0:01:02.4]} 31. Ne5 {[%clk 0:00:58.5]} 31... Ne4 {[%clk
0:00:56.8]} 32. Rd7 {[%clk 0:00:53.8]} 32... Qe8 {[%clk 0:00:44.1]} 33. Rxh7
{[%clk 0:00:48.2]} 33... Qa4 {[%clk 0:00:38.5]} 34. Nc4 {[%clk 0:00:38.2]} 34...
Qd1+ {[%clk 0:00:36.2]} 35. Kh2 {[%clk 0:00:36.6]} 35... Qd5 {[%clk 0:00:25.4]}
36. Qc7# {[%clk 0:00:34.8]} 1-0